bitfinex/quotes_BTCUSD_20250703
["timestamp","ask_amount","ask_price","bid_price","bid_amount"]
[1751557184373,0.00014094,109520.0,109510.0,1.08847203]
[1751557184776,0.00014094,109520.0,109510.0,1.0338845]
[1751557185391,0.00014094,109520.0,109510.0,1.05204975]
[1751557186378,0.00014094,109520.0,109510.0,0.99746222]
[1751557186997,0.00014094,109520.0,109510.0,1.46619051]
[1751557188431,0.00014094,109520.0,109510.0,1.5389734]
[1751557189804,0.00014094,109520.0,109510.0,1.55351425]
[1751557189985,0.027447,109560.0,109550.0,0.20994818]
[1751557189986,0.00912666,109560.0,109550.0,0.20994818]
[1751557190228,0.0092682,109560.0,109550.0,0.20994818]
[1751557190658,0.05038861,109560.0,109550.0,0.20994818]
[1751557191087,0.02752211,109560.0,109550.0,0.20994818]
[1751557191294,0.03664919,109560.0,109550.0,0.20994818]
[1751557191710,0.0686426,109560.0,109550.0,0.20994818]
[1751557191911,0.05038869,109560.0,109550.0,0.20994818]
[1751557192117,0.03213436,109560.0,109550.0,0.20994818]
[1751557192320,0.01839511,109560.0,109550.0,0.20994818]
[1751557192925,0.02752219,109560.0,109550.0,0.20994818]
[1751557193133,0.05038835,109560.0,109550.0,0.21995861]
[1751557193306,0.2511913,109560.0,109550.0,0.2008206]
[1751557193546,0.73216602,109560.0,109550.0,0.20082128]
[1751557193752,0.01825533,109550.0,109540.0,0.20082366]
[1751557193956,0.03199374,109550.0,109540.0,0.20082366]
[1751557194164,0.04112149,109550.0,109540.0,0.20082366]
[1751557194793,0.05024932,109550.0,109540.0,0.20082366]
[1751557195220,0.04112149,109550.0,109540.0,0.20082366]
[1751557195432,0.0502494,109550.0,109540.0,0.20082366]
[1751557196048,0.04112149,109550.0,109540.0,0.20082366]
[1751557196891,0.0502494,109550.0,109540.0,0.20082366]
[1751557197189,0.0502494,109550.0,109540.0,0.21790675]
[1751557197399,0.04112149,109550.0,109540.0,0.21790675]
[1751557197880,0.23293806,109560.0,109550.0,0.20082094]
[1751557198103,0.0183952,109560.0,109550.0,0.23615944]
[1751557198532,0.0275222,109560.0,109550.0,0.23615944]
[1751557198971,0.00926829,109560.0,109550.0,0.23615944]
[1751557199189,0.02752203,109560.0,109550.0,0.23615944]
[1751557199838,0.01839512,109560.0,109550.0,0.23615944]
[1751557200063,0.02752212,109560.0,109550.0,0.23615944]
[1751557201069,0.01839512,109560.0,109550.0,0.23615944]
[1751557201330,0.02752212,109560.0,109550.0,0.23615944]
[1751557201543,0.0230077,109560.0,109550.0,0.24510788]
[1751557201761,0.00014154,109560.0,109550.0,0.36904481]
[1751557201972,0.00014154,109560.0,109550.0,0.39954481]
[1751557202174,0.00014154,109560.0,109550.0,0.40955524]
[1751557202385,0.0092682,109560.0,109550.0,0.39059637]
[1751557202551,0.02752195,109560.0,109550.0,0.32759637]
[1751557203393,0.01839495,109560.0,109550.0,0.32759637]
[1751557204234,0.02752186,109560.0,109550.0,0.32759637]
[1751557204904,0.01839495,109560.0,109550.0,0.32759637]
[1751557205345,0.02752186,109560.0,109550.0,0.32759637]
[1751557205595,0.02752186,109560.0,109550.0,0.33653814]
[1751557207547,0.00014154,109560.0,109550.0,0.33653814]
[1751557208196,0.00014154,109560.0,109550.0,0.77336831]
[1751557208465,0.00014154,109560.0,109550.0,0.80985448]
[1751557208705,0.00014154,109560.0,109550.0,1.12309756]
[1751557208924,0.00014154,109560.0,109550.0,1.46309756]
[1751557209149,0.00014154,109560.0,109550.0,1.48134065]
[1751557210008,0.00014154,109560.0,109550.0,1.57459395]
[1751557210218,0.00014154,109560.0,109550.0,1.50162161]
[1751557212336,0.00014154,109560.0,109550.0,1.55625459]
[1751557212773,0.00014154,109560.0,109550.0,1.08927112]
[1751557212991,0.00014154,109560.0,109550.0,1.12569672]
[1751557213211,0.00014154,109560.0,109550.0,1.06259672]
[1751557216827,0.00014154,109560.0,109550.0,1.04551363]
[1751557218829,0.00014154,109560.0,109550.0,1.07831363]
[1751557220133,0.00014154,109560.0,109550.0,1.10851363]
[1751557220913,0.00014154,109560.0,109550.0,1.12559235]
[1751557221101,0.00014154,109560.0,109550.0,1.08916675]
[1751557223110,0.00014154,109560.0,109550.0,1.05896561]
[1751557223474,0.00014154,109560.0,109550.0,1.06259674]
[1751557226411,0.00014154,109560.0,109550.0,1.02616561]
[1751557226874,0.00879337,109570.0,109560.0,0.20992961]
[1751557227111,0.27342961,109560.0,109550.0,0.09107887]
[1751557227339,0.0091275,109550.0,109540.0,0.20995897]
[1751557227539,0.10462041,109560.0,109550.0,0.20994876]
[1751557227745,0.29629619,109560.0,109550.0,0.20878293]
[1751557227967,0.28716919,109560.0,109550.0,0.20878293]
[1751557228318,0.75415266,109560.0,109550.0,0.01708974]
[1751557228927,0.75415266,109560.0,109540.0,0.00014154]
[1751557228928,0.21455927,109550.0,109540.0,0.00014154]
[1751557229238,0.74684274,109550.0,109540.0,0.00014154]
[1751557229600,0.77428874,109550.0,109540.0,0.19185232]
[1751557229804,0.30730527,109550.0,109540.0,0.19185232]
[1751557230003,0.69034825,109550.0,109540.0,0.19185232]
[1751557230565,0.69034825,109550.0,109540.0,0.20098132]
[1751557230957,0.69967498,109550.0,109540.0,0.21011015]
[1751557231306,0.46208114,109550.0,109540.0,0.22836748]
[1751557231503,0.63882942,109550.0,109540.0,0.20098107]
[1751557231711,0.67945767,109550.0,109540.0,0.21010973]
[1751557231917,0.67945767,109550.0,109540.0,0.21010982]
[1751557232547,0.66120242,109550.0,109540.0,0.19185232]
[1751557232745,0.65207442,109550.0,109540.0,0.19185232]
[1751557234615,0.65207442,109550.0,109540.0,0.20098132]
[1751557234961,0.28720903,109550.0,109540.0,0.20098132]
[1751557235173,0.66112401,109550.0,109540.0,0.20098132]
[1751557235411,0.65199576,109550.0,109540.0,0.19185232]
[1751557235620,0.65199576,109550.0,109540.0,0.00014154]
[1751557236701,0.27808078,109550.0,109540.0,0.00014154]
[1751557236906,0.27815935,109550.0,109540.0,0.20098115]
[1751557237116,0.65207433,109550.0,109540.0,0.19185232]
[1751557237731,0.65207433,109550.0,109540.0,0.20098123]
[1751557237940,0.62057433,109550.0,109540.0,0.20098123]
[1751557238144,0.61144617,109550.0,109540.0,0.19185232]
[1751557238346,0.64424617,109550.0,109540.0,0.19185232]
[1751557238548,0.64424617,109550.0,109540.0,0.21011023]
[1751557238837,0.67169317,109550.0,109540.0,0.21011023]
[1751557239058,0.29777819,109550.0,109540.0,0.20098132]
[1751557239276,0.67169317,109550.0,109540.0,0.21011023]
[1751557239521,0.29777819,109550.0,109540.0,0.21011023]
[1751557240132,0.67169317,109550.0,109540.0,0.21011023]
[1751557240351,0.29777819,109550.0,109540.0,0.21923906]
[1751557240589,0.67169317,109550.0,109540.0,0.21011023]
[1751557241227,0.67169317,109550.0,109540.0,0.20098132]
[1751557241837,0.67169317,109550.0,109540.0,0.00927062]
[1751557242055,0.67169317,109550.0,109540.0,0.19185232]
[1751557242268,0.67169317,109550.0,109540.0,0.20098132]
[1751557243936,0.67169317,109550.0,109540.0,0.19185232]
[1751557244517,0.67169317,109550.0,109540.0,0.00014154]
[1751557245731,0.67169317,109550.0,109540.0,0.19185232]
[1751557245922,0.67169317,109550.0,109540.0,0.20098132]
[1751557247238,0.62504942,109550.0,109540.0,0.21923889]
[1751557247448,0.63417717,109550.0,109540.0,0.21923889]
[1751557247822,0.63417717,109550.0,109540.0,0.21011023]
[1751557247965,0.63417717,109550.0,109540.0,0.21923906]
[1751557248385,0.58386401,109550.0,109540.0,0.22836772]
[1751557248595,0.60673017,109550.0,109540.0,0.22836772]
[1751557248800,0.59760242,109550.0,109540.0,0.21923906]
[1751557249251,0.58847442,109550.0,109540.0,0.21923906]
[1751557249459,0.61134617,109550.0,109540.0,0.00014154]
[1751557249668,0.64254617,109550.0,109540.0,0.00014154]
[1751557249889,0.64254617,109550.0,109540.0,0.18272324]
[1751557250044,0.64254617,109550.0,109540.0,0.19185232]
[1751557251916,0.26863119,109550.0,109540.0,0.19185232]
[1751557252123,0.64254617,109550.0,109540.0,0.19185232]
[1751557252875,0.26863119,109550.0,109540.0,0.19185232]
[1751557253088,0.59760242,109550.0,109540.0,0.20098115]
[1751557253312,0.59760242,109550.0,109540.0,0.21010981]
[1751557253730,0.20082078,109550.0,109540.0,0.21923839]
[1751557253932,0.60673,109550.0,109540.0,0.21010981]
[1751557254218,0.62082338,109560.0,109550.0,0.19169319]
[1751557254442,0.00952675,109560.0,109550.0,0.20994885]
[1751557254649,0.01865375,109560.0,109550.0,0.21907651]
[1751557254832,0.41082322,109560.0,109550.0,0.20994885]
[1751557255070,0.42456205,109560.0,109550.0,0.21907651]
[1751557255296,0.39256873,109560.0,109550.0,0.21907651]
[1751557255509,0.40169589,109560.0,109550.0,0.21907651]
[1751557255936,0.0004,109560.0,109550.0,0.21907651]
[1751557256151,0.04152007,109560.0,109550.0,0.21907651]
[1751557256364,0.03239299,109560.0,109550.0,0.21907651]
[1751557256581,0.04151999,109560.0,109550.0,0.21907651]
[1751557256802,0.00952666,109560.0,109550.0,0.25067651]
[1751557257035,0.0004,109560.0,109550.0,0.74882842]
[1751557257483,0.0004,109560.0,109550.0,0.8034614]
[1751557258640,0.0004,109560.0,109550.0,1.4384614]
[1751557259322,0.0004,109560.0,109550.0,1.06454642]
[1751557262372,0.0004,109560.0,109550.0,1.00991344]
[1751557265438,0.00952666,109560.0,109550.0,1.00991344]
[1751557265651,0.0004,109560.0,109550.0,1.00991344]
[1751557266111,0.0004,109560.0,109550.0,1.38382842]
[1751557267024,0.00952683,109560.0,109550.0,0.94551344]
[1751557267687,0.6372176,109560.0,109550.0,0.295]
[1751557267916,0.26330262,109560.0,109550.0,0.295]
[1751557268177,0.6372176,109560.0,109550.0,0.295]
[1751557268408,0.6372176,109560.0,109550.0,0.30501043]
[1751557268632,0.6372176,109560.0,109550.0,0.19169328]
[1751557269289,0.20994911,109550.0,109540.0,0.54118115]
[1751557269522,0.59299209,109550.0,109540.0,0.21030973]
[1751557269744,0.41042706,109550.0,109540.0,0.21943823]
[1751557269972,0.59299209,109550.0,109540.0,0.21030973]
[1751557270190,0.02738383,109550.0,109540.0,0.21943823]
[1751557270424,0.59299209,109550.0,109540.0,0.21030981]
[1751557270681,0.59299209,109550.0,109540.0,0.19205232]
[1751557270872,0.65397442,109550.0,109540.0,0.00034154]
[1751557271088,0.65397442,109550.0,109540.0,0.18292324]
[1751557271317,0.65397442,109550.0,109540.0,0.00034154]
[1751557272218,0.65397442,109550.0,109540.0,0.18292324]
[1751557272435,0.65397442,109550.0,109540.0,0.20118132]
[1751557272658,0.65397442,109550.0,109540.0,0.21031023]
[1751557273088,0.65397442,109550.0,109540.0,0.20118132]
[1751557273552,0.65397442,109550.0,109540.0,0.19205232]
[1751557273765,0.64484617,109550.0,109540.0,0.00034154]
[1751557274128,0.64484617,109550.0,109540.0,0.18292324]
[1751557275097,0.64484617,109550.0,109540.0,0.19205232]
[1751557275963,0.64484617,109550.0,109540.0,0.20118132]
[1751557276603,0.27093119,109550.0,109540.0,0.21031023]
[1751557276819,0.58847433,109550.0,109540.0,0.21031023]
[1751557277039,0.59899051,109560.0,109550.0,0.00912825]
[1751557277263,0.00952691,109560.0,109550.0,0.21907677]
[1751557277479,0.02778041,109560.0,109550.0,0.21907677]
[1751557277712,0.01865341,109560.0,109550.0,0.21907677]
[1751557278485,0.03239291,109560.0,109550.0,0.28167677]
[1751557278697,0.02326616,109560.0,109550.0,0.28167677]
[1751557279121,0.03239299,109560.0,109550.0,0.28167677]
[1751557279794,0.0004,109560.0,109550.0,0.28167677]
[1751557279998,0.03239291,109560.0,109550.0,0.28167677]
[1751557280210,0.02326616,109560.0,109550.0,0.28167677]
[1751557280611,0.03239291,109560.0,109550.0,0.28167677]
[1751557281034,0.02326616,109560.0,109550.0,0.28167677]
[1751557281250,0.0004,109560.0,109550.0,0.28167677]
[1751557281484,0.02326616,109560.0,109550.0,0.28167677]
[1751557282664,0.04151974,109560.0,109550.0,0.28167677]
[1751557283231,0.03239291,109560.0,109550.0,0.28167677]
[1751557284116,0.02326616,109560.0,109550.0,0.28167677]
[1751557284527,0.03239291,109560.0,109550.0,0.28167677]
[1751557284951,0.04151982,109560.0,109550.0,0.25017677]
[1751557286368,0.05064682,109560.0,109550.0,0.25017677]
[1751557286780,0.0597739,109560.0,109550.0,0.25017677]
[1751557286979,0.06890115,109560.0,109550.0,0.21907677]
[1751557287323,0.06890106,109560.0,109550.0,0.21907677]
[1751557287520,0.44281604,109560.0,109550.0,0.21907677]
[1751557287882,0.44281654,109560.0,109550.0,0.21907677]
[1751557288993,0.61623833,109560.0,109550.0,0.20082128]
[1751557289243,0.62536574,109560.0,109550.0,0.20994911]
[1751557289661,0.62536574,109560.0,109550.0,0.21907686]
[1751557289993,0.61623866,109560.0,109550.0,0.21907686]
[1751557290404,0.24232368,109560.0,109550.0,0.21907686]
[1751557290636,0.61623866,109560.0,109550.0,0.21907686]
[1751557290762,0.43369029,109560.0,109550.0,0.22820452]
[1751557291161,0.61623866,109560.0,109550.0,0.22820452]
[1751557291834,0.61623866,109560.0,109550.0,0.21907686]
[1751557292037,0.61623866,109560.0,109550.0,0.22820452]
[1751557293249,0.61623866,109560.0,109550.0,0.20994911]
[1751557294927,0.51623866,109560.0,109550.0,0.21907686]
[1751557295756,0.24553285,109570.0,109560.0,0.18254837]
[1751557295976,0.58724783,109570.0,109560.0,0.18254837]
[1751557296161,0.61974783,109570.0,109560.0,0.18254837]
[1751557296434,0.61974783,109570.0,109560.0,0.19167578]
[1751557296679,0.61974783,109570.0,109560.0,0.20080303]
[1751557296901,0.55684783,109570.0,109560.0,0.20080303]
[1751557297124,0.55684783,109570.0,109560.0,0.20993011]
[1751557297346,0.55684783,109570.0,109560.0,0.20080303]
[1751557298467,0.18293285,109570.0,109560.0,0.20080303]
[1751557298679,0.55684783,109570.0,109560.0,0.20080303]
[1751557298937,0.55684783,109570.0,109560.0,0.19167578]
[1751557299376,0.18293285,109570.0,109560.0,0.19167578]
[1751557299590,0.55684783,109570.0,109560.0,0.19167578]
[1751557300241,0.55684783,109570.0,109560.0,0.20080311]
[1751557301550,0.00952583,109570.0,109560.0,0.82159863]
[1751557301781,0.0004,109570.0,109560.0,0.82159863]
[1751557301996,0.0004,109570.0,109560.0,1.89968744]
[1751557302219,1e-08,109600.0,109590.0,0.61658712]
[1751557302438,1e-08,109600.0,109590.0,1.45463903]
[1751557302673,1e-08,109600.0,109590.0,1.52382884]
[1751557302887,1e-08,109600.0,109590.0,1.46917988]
[1751557303312,1e-08,109600.0,109590.0,1.52373513]
[1751557303526,0.00014152,109600.0,109590.0,1.54078738]
[1751557303975,0.00014152,109600.0,109590.0,1.1668724]
[1751557305322,0.60032362,109640.0,109630.0,0.20067474]
[1751557305529,0.65640328,109640.0,109630.0,0.20860565]
[1751557305730,0.65645045,109640.0,109630.0,0.21772715]
[1751557306689,0.64732986,109640.0,109630.0,0.01705225]
[1751557306898,0.57287162,109640.0,109630.0,0.21772699]
[1751557307106,0.40869721,109640.0,109630.0,0.22684808]
[1751557307323,0.58199229,109640.0,109630.0,0.21772699]
[1751557307544,0.00912167,109620.0,109610.0,0.19155848]
[1751557307756,0.39215757,109630.0,109620.0,0.20069262]
[1751557307974,0.19895664,109640.0,109620.0,0.20069229]
[1751557308195,0.04390257,109640.0,109630.0,0.2097954]
[1751557308418,0.59111213,109640.0,109630.0,0.19155323]
[1751557308635,0.60935338,109640.0,109630.0,0.2006744]
[1751557308870,0.60935338,109640.0,109630.0,0.19155323]
[1751557309100,0.19155315,109630.0,109620.0,0.19157045]
[1751557309325,0.39215707,109630.0,109620.0,0.30125147]
[1751557309960,0.02736293,109630.0,109620.0,0.30125147]
[1751557310170,0.60195239,109630.0,109620.0,0.1915707]
[1751557310387,0.59283205,109630.0,109620.0,0.20981487]
[1751557310592,0.03648526,109630.0,109620.0,0.21893679]
[1751557310815,0.60195364,109630.0,109620.0,0.20069287]
[1751557311016,0.59283255,109630.0,109620.0,0.20981496]
[1751557311226,0.59283255,109630.0,109620.0,0.21893696]
[1751557311429,0.60498988,109630.0,109620.0,0.19157087]
[1751557311633,0.60498988,109630.0,109620.0,0.2006932]
[1751557311846,0.20069304,109620.0,109610.0,0.49568181]
[1751557312150,0.948523,109620.0,109610.0,0.48658827]
[1751557312360,0.57460802,109620.0,109610.0,0.48658827]
[1751557313186,0.56548585,109620.0,109610.0,0.48658827]
[1751557313392,0.99427841,109620.0,109610.0,0.295]
[1751557314874,0.20985249,109600.0,109590.0,0.20074765]
[1751557315079,0.4104098,109600.0,109590.0,0.2189964]
[1751557315275,0.59289155,109600.0,109590.0,0.2189964]
[1751557315522,0.59289155,109600.0,109590.0,0.1824984]
[1751557315730,0.58376822,109600.0,109590.0,0.20987274]
[1751557316143,0.58381536,109600.0,109590.0,0.20987274]
[1751557317381,0.20990038,109600.0,109590.0,0.21899732]
[1751557317589,0.58381536,109600.0,109590.0,0.21899732]
[1751557318428,0.58381536,109600.0,109590.0,0.22812174]
[1751557320756,0.40133345,109600.0,109590.0,0.22812115]
[1751557320959,0.40173345,109600.0,109590.0,0.22812115]
[1751557321380,0.40173345,109600.0,109590.0,0.24510961]
[1751557321649,0.5933392,109600.0,109590.0,0.22686086]
[1751557321853,0.40173387,109600.0,109590.0,0.22686086]
[1751557322057,0.40173387,109600.0,109590.0,0.23598519]
[1751557322481,0.40173387,109600.0,109590.0,0.23599212]
[1751557323348,0.58421562,109600.0,109590.0,0.23599212]
[1751557323773,0.40173387,109600.0,109590.0,0.23599212]
[1751557324638,0.39260953,109600.0,109590.0,0.23599212]
[1751557324850,0.40173278,109600.0,109590.0,0.23599212]
[1751557325076,0.41085661,109600.0,109590.0,0.23599212]
[1751557325651,0.04606555,109600.0,109590.0,0.23599212]
[1751557325874,0.41998053,109600.0,109590.0,0.23599212]
[1751557326096,0.60246303,109600.0,109590.0,0.23599212]
[1751557326327,0.4108572,109600.0,109590.0,0.23599212]
[1751557326758,0.4108572,109600.0,109590.0,0.23601558]
[1751557326992,0.00044714,109600.0,109590.0,0.23601558]
[1751557327252,0.00044714,109600.0,109590.0,0.76626749]
[1751557327498,0.00044714,109600.0,109590.0,1.10626749]
[1751557327717,0.00044714,109600.0,109590.0,1.77518247]
[1751557327935,0.00044714,109600.0,109590.0,1.40126749]
[1751557330720,0.00044714,109600.0,109590.0,1.38424864]
[1751557332953,0.00044714,109600.0,109590.0,1.01033366]
[1751557333150,0.00044714,109600.0,109590.0,1.38424864]
[1751557333842,0.00044714,109600.0,109590.0,1.01033366]
[1751557334070,0.00044714,109600.0,109590.0,0.99998891]
[1751557334251,0.00957056,109600.0,109590.0,0.94543366]
[1751557334650,0.01869406,109600.0,109590.0,0.94543366]
[1751557334856,0.00957056,109600.0,109590.0,0.94543366]
[1751557335765,0.01869414,109600.0,109590.0,0.94543366]
[1751557336174,0.00044714,109600.0,109590.0,0.94543366]
[1751557336714,0.01869397,109600.0,109590.0,0.65043366]
[1751557336927,0.40173262,109600.0,109590.0,0.65043366]
[1751557337159,0.41085654,109600.0,109590.0,0.31043366]
[1751557337376,0.58421546,109600.0,109590.0,0.19182323]
[1751557337590,0.64921546,109600.0,109590.0,0.21007265]
[1751557337806,0.40173304,109600.0,109590.0,0.22832148]
[1751557338027,0.40173313,109600.0,109590.0,0.22832148]
[1751557338250,0.03694215,109600.0,109590.0,0.22832148]
[1751557338457,0.01869423,109600.0,109590.0,0.31975841]
[1751557338662,0.02781797,109600.0,109590.0,0.31975841]
[1751557338884,0.02781797,109600.0,109590.0,0.24540898]
[1751557339096,0.03694189,109600.0,109590.0,0.24540898]
[1751557339345,0.59333862,109600.0,109590.0,0.23628473]
[1751557339566,0.59333862,109600.0,109590.0,0.24540923]
[1751557339797,0.41085687,109600.0,109590.0,0.24540873]
[1751557340001,0.6024627,109600.0,109590.0,0.2362844]
[1751557340210,0.6024627,109600.0,109590.0,0.24540882]
[1751557340870,0.6024627,109600.0,109590.0,0.24541433]
[1751557341087,0.41085687,109600.0,109590.0,0.24541391]
[1751557342782,0.41998087,109600.0,109590.0,0.24541391]
[1751557343004,0.41085687,109600.0,109590.0,0.24541391]
[1751557343213,0.40173295,109600.0,109590.0,0.24541391]
[1751557343421,0.02781797,109600.0,109590.0,0.24541391]
[1751557343832,0.03694189,109600.0,109590.0,0.24541391]
[1751557344716,0.02781789,109600.0,109590.0,0.24541391]
[1751557345780,0.03694181,109600.0,109590.0,0.24541391]
[1751557345982,0.02781789,109600.0,109590.0,0.24541391]
[1751557346198,0.03694181,109600.0,109590.0,0.25542434]
[1751557346408,0.02781789,109600.0,109590.0,0.24541391]
[1751557346617,0.40173287,109600.0,109590.0,0.24541391]
[1751557347872,0.03694181,109600.0,109590.0,0.24541391]
[1751557349747,0.41085679,109600.0,109590.0,0.24541391]
[1751557350365,0.40173287,109600.0,109590.0,0.24541391]
[1751557350572,0.4108567,109600.0,109590.0,0.24541391]
[1751557350795,0.41998062,109600.0,109590.0,0.24541391]
[1751557352379,0.4108567,109600.0,109590.0,0.24541391]
[1751557353181,0.41998062,109600.0,109590.0,0.24541391]
[1751557353588,0.4108567,109600.0,109590.0,0.24541391]
[1751557354461,0.41998062,109600.0,109590.0,0.24541391]
[1751557355127,0.4108567,109600.0,109590.0,0.24541391]
[1751557355788,0.4108567,109600.0,109590.0,0.24542078]
[1751557356611,0.41998062,109600.0,109590.0,0.24542078]
[1751557357705,0.26387681,109600.0,109590.0,0.01729988]
[1751557357923,0.63779179,109600.0,109590.0,0.01729988]
[1751557358163,0.62866787,109600.0,109590.0,0.01729988]
[1751557358852,1.00258285,109600.0,109590.0,0.01729988]
[1751557359068,0.62866787,109600.0,109590.0,0.01729988]
[1751557359937,0.7201048,109600.0,109590.0,0.01729988]
[1751557361895,0.7201048,109600.0,109590.0,0.0172945]
[1751557363613,0.25475289,109600.0,109590.0,0.0172945]
[1751557363830,0.59846787,109600.0,109590.0,0.0172945]
[1751557364050,0.5750917,109600.0,109590.0,0.1997929]
[1751557364237,0.00044714,109600.0,109590.0,0.22716656]
[1751557364449,0.01869414,109600.0,109590.0,0.25966656]
[1751557364687,0.00957056,109600.0,109590.0,0.29006656]
[1751557364903,0.01869414,109600.0,109590.0,0.29006656]
[1751557365335,0.21942372,109600.0,109590.0,0.24141765]
[1751557365514,0.59333936,109600.0,109590.0,0.25054223]
[1751557365754,0.59333936,109600.0,109590.0,0.25966665]
[1751557366004,0.41085761,109600.0,109590.0,0.26879098]
[1751557366215,0.59333936,109600.0,109590.0,0.25966665]
[1751557366467,0.21942438,109600.0,109590.0,0.25054232]
[1751557366668,0.2103008,109600.0,109590.0,0.21804232]
[1751557366875,0.20117697,109600.0,109590.0,0.20891765]
[1751557367081,0.20117697,109600.0,109590.0,0.02730493]
[1751557367337,0.56596795,109600.0,109590.0,0.0172945]
[1751557369176,0.63136795,109600.0,109590.0,0.0172945]
[1751557370815,1.09671986,109600.0,109590.0,0.0172945]
[1751557371290,1.12415686,109600.0,109590.0,0.0172945]
[1751557371499,1.13869771,109600.0,109590.0,0.0172945]
[1751557371918,1.1604801,109600.0,109590.0,0.0172945]
[1751557372554,0.81331729,109600.0,109590.0,0.0172945]
[1751557372760,1.18723227,109600.0,109590.0,0.0172945]
[1751557372972,1.18723227,109600.0,109590.0,0.0002]
[1751557374001,1.16544988,109600.0,109590.0,0.0002]
[1751557374612,1.12415686,109600.0,109590.0,0.0002]
[1751557377525,1.12415686,109600.0,109560.0,0.0731897]
[1751557377526,0.20078428,109570.0,109560.0,0.0731897]
[1751557377742,0.57469926,109570.0,109560.0,0.0731897]
[1751557377949,0.57469926,109570.0,109550.0,0.0002]
[1751557377950,0.19167562,109560.0,109550.0,0.0002]
[1751557378159,1.00150558,109560.0,109550.0,0.01729064]
[1751557379394,0.93955269,109560.0,109550.0,0.01729064]
[1751557379804,0.56563771,109560.0,109550.0,0.01729064]
[1751557380553,0.19172273,109560.0,109550.0,0.01729064]
[1751557380752,0.56563771,109560.0,109550.0,0.01729064]
[1751557381175,0.57495761,109560.0,109550.0,0.01729064]
[1751557381730,0.57495761,109560.0,109550.0,0.0002]
[1751557381942,0.60240261,109560.0,109550.0,0.0002]
[1751557385732,1.00961759,109560.0,109550.0,0.0002]
[1751557385959,1.13255452,109560.0,109550.0,0.0002]
[1751557386169,6.13172737,109560.0,109550.0,0.0002]
[1751557386382,6.2231643,109560.0,109550.0,0.0002]
[1751557386596,6.13172737,109560.0,109550.0,0.0002]
[1751557387026,1.14709537,109560.0,109550.0,0.0002]
[1751557387241,6.47172737,109560.0,109550.0,0.0002]
[1751557388720,6.47172737,109560.0,109550.0,0.0012]
[1751557389149,6.47172737,109560.0,109550.0,0.0002]
[1751557389366,6.47172737,109560.0,109550.0,1e-08]
[1751557389581,6.47272737,109560.0,109550.0,1e-08]
[1751557390478,6.5641643,109560.0,109550.0,1e-08]
[1751557390731,6.49349592,109550.0,109540.0,1e-08]
[1751557390928,6.06101787,109550.0,109540.0,1e-08]
[1751557391144,5.67256204,109550.0,109540.0,1e-08]
[1751557391410,6.01457702,109550.0,109540.0,1e-08]
[1751557391868,6.06011787,109550.0,109540.0,1e-08]
[1751557392098,6.06111787,109550.0,109540.0,1e-08]
[1751557392324,6.47351519,109550.0,109540.0,1e-08]
[1751557392552,6.52146918,109550.0,109540.0,1e-08]
[1751557392992,6.48298684,109550.0,109540.0,1e-08]
[1751557393505,6.48298684,109550.0,109540.0,0.00100001]
[1751557393943,0.54085762,109530.0,109520.0,0.0002]
[1751557394180,1.38012451,109530.0,109520.0,0.0002]
[1751557394396,1.38012451,109530.0,109520.0,0.0307]
[1751557394397,0.5747726,109530.0,109520.0,0.0307]
[1751557394613,0.6022246,109530.0,109520.0,0.0608]
[1751557394843,0.20085762,109530.0,109520.0,0.0608]
[1751557395058,0.19172812,109530.0,109520.0,0.0608]
[1751557395274,0.5666431,109530.0,109520.0,0.0698]
[1751557396137,0.19272812,109530.0,109520.0,0.0698]
[1751557397448,0.19272812,109530.0,109520.0,0.25241504]
[1751557397726,0.19272812,109530.0,109520.0,0.2615457]
[1751557398370,0.19272812,109530.0,109520.0,0.25241504]
[1751557398584,0.19272812,109530.0,109520.0,0.26154579]
[1751557399283,0.65110646,109530.0,109520.0,0.0698]
[1751557399698,0.65110646,109530.0,109520.0,0.0092]
[1751557399937,0.65110646,109530.0,109520.0,0.01771261]
[1751557402631,0.18359837,109530.0,109520.0,0.05091261]
[1751557402883,0.18359837,109530.0,109520.0,0.08331976]
[1751557403788,0.65110646,109530.0,109520.0,0.01771976]
[1751557404267,0.65110646,109530.0,109520.0,0.01772172]
[1751557408334,0.65110646,109530.0,109520.0,0.04992172]
[1751557408550,0.18359837,109530.0,109520.0,0.27396734]
[1751557408755,0.20185803,109530.0,109520.0,0.08223785]
[1751557409100,0.66936612,109530.0,109520.0,0.08223785]
[1751557409976,0.20185803,109530.0,109520.0,0.27398347]
[1751557410193,0.01925925,109530.0,109520.0,0.28311397]
[1751557410431,0.21098753,109530.0,109520.0,0.28311548]
[1751557410643,0.21098753,109530.0,109520.0,0.28370653]
[1751557411092,0.20185803,109530.0,109520.0,0.26544562]
[1751557411336,0.18359837,109530.0,109520.0,0.0737]
[1751557411542,0.18359837,109530.0,109520.0,0.2654457]
[1751557411765,0.65110646,109530.0,109520.0,0.09078309]
[1751557411984,0.65110646,109530.0,109520.0,0.02628309]
[1751557412217,0.65110646,109530.0,109520.0,0.03482503]
[1751557412658,0.71220646,109530.0,109520.0,0.03482503]
[1751557413094,0.71220646,109530.0,109520.0,0.01774194]
[1751557413805,0.80364339,109530.0,109520.0,0.01774194]
[1751557414045,1.64741723,109530.0,109520.0,0.01774194]
[1751557414504,6.63204923,109530.0,109520.0,0.01774194]
[1751557414718,6.68869438,109530.0,109520.0,0.01775117]
[1751557414925,6.65923558,109530.0,109520.0,0.01775117]
[1751557415136,6.65923558,109530.0,109500.0,0.0002]
[1751557415137,0.24403172,109510.0,109500.0,0.0002]
[1751557415347,0.81210815,109510.0,109500.0,0.0002]
[1751557415555,0.83383305,109510.0,109500.0,0.0002]
[1751557416586,1.17382084,109510.0,109500.0,0.00067039]
[1751557416768,1.17382084,109510.0,109500.0,0.00167039]
[1751557417873,1.11242084,109510.0,109500.0,0.00167039]
[1751557417987,1.11242084,109510.0,109500.0,0.01876263]
[1751557418420,1.09070815,109510.0,109500.0,0.01876263]
[1751557418625,0.75070815,109510.0,109500.0,0.01876263]
[1751557420102,0.65927122,109510.0,109500.0,0.01876263]
[1751557420473,0.65927122,109510.0,109500.0,0.01875496]
[1751557420680,0.68673022,109510.0,109500.0,0.01875496]
[1751557422688,0.03658983,109510.0,109500.0,0.26180336]
[1751557422952,0.0220895,109540.0,109530.0,0.20998711]
[1751557423132,0.02778608,109540.0,109530.0,0.43041432]
[1751557423348,0.20123944,109540.0,109530.0,0.08128457]
[1751557423562,0.20123944,109540.0,109530.0,0.09357747]
[1751557423777,0.01865741,109540.0,109530.0,0.1727215]
[1751557424001,0.21949636,109540.0,109530.0,0.27301285]
[1751557424227,0.48616584,109540.0,109530.0,0.27301269]
[1751557424442,0.49529425,109540.0,109530.0,0.27301269]
[1751557424662,0.02778616,109540.0,109530.0,0.27301269]
[1751557424881,0.21136786,109540.0,109530.0,0.27701285]
[1751557425091,0.21136786,109540.0,109530.0,0.26788294]
[1751557425092,0.20223936,109540.0,109530.0,0.26788294]
[1751557425295,0.20223936,109540.0,109530.0,0.27701277]
[1751557425515,0.20223936,109540.0,109530.0,0.26788294]
[1751557425714,0.20223936,109540.0,109530.0,0.27701277]
[1751557425918,0.1839817,109540.0,109530.0,0.098295]